bitfinex/quotes_ETHUSD_20220212
["timestamp","ask_amount","ask_price","bid_price","bid_amount"]
[1644625084211,16.0926,2919.5,2917.9,3.55]
[1644625084212,0.46065958,2918.6,2918.1,0.01298041]
[1644625084412,0.46065958,2918.8,2918.3,0.8567876]
[1644625084613,0.31826759,2918.9,2918.7,5.0]
[1644625084813,0.31826759,2919.2,2918.8,0.493]
[1644625085009,0.31826759,2919.2,2918.8,2.40398654]
[1644625085210,0.31826759,2919.2,2919.1,6.16]
[1644625085412,0.36341012,2919.9,2919.1,6.16]
[1644625085414,0.31826759,2919.3,2919.1,8.31835992]
[1644625085613,0.36341012,2919.9,2919.2,5.1712]
[1644625085815,0.36341012,2919.9,2919.4,5.0]
[1644625086012,0.36341012,2919.9,2919.2,7.3312]
[1644625086013,0.36341012,2919.9,2919.8,6.16]
[1644625086214,1.10844326,2920.7,2919.8,6.653]
[1644625086614,0.1711,2921.2,2919.9,1.66425518]
[1644625086814,0.1711,2921.2,2920.0,0.493]
[1644625087014,0.00600849,2920.4,2920.0,0.493]
[1644625087214,0.00600849,2920.4,2920.0,0.793]
[1644625087655,0.00600849,2920.4,2920.1,0.85647]
[1644625087858,7.46,2920.7,2920.2,0.493]
[1644625088060,0.1711,2920.6,2919.3,6.16]
[1644625088258,0.1711,2920.6,2919.1,0.1711]
[1644625088259,0.00600849,2920.4,2919.1,0.493]
[1644625088463,5.1711,2920.3,2919.1,0.493]
[1644625088658,1.04327127,2919.2,2919.1,0.30061889]
[1644625088857,0.1711,2920.1,2919.1,0.30061889]
[1644625089257,0.4711,2920.1,2919.1,0.30061889]
[1644625089458,0.0085022,2919.7,2919.1,0.30061889]
[1644625089858,0.0085022,2919.7,2919.1,0.10802831]
[1644625090057,0.0085022,2919.7,2919.2,0.85675]
[1644625090259,0.0085022,2919.7,2919.3,0.493]
[1644625090458,1.58118807,2920.0,2918.7,1.71361]
[1644625090459,0.1711,2919.6,2918.7,1.71361]
[1644625090658,0.00850233,2919.6,2918.8,0.493]
[1644625090856,0.1711,2919.5,2918.8,0.493]
[1644625091060,1.03502647,2919.4,2918.8,0.493]
[1644625091310,0.1711,2919.3,2918.8,0.29968244]
[1644625091710,2.75,2919.2,2918.8,0.10628479]
[1644625092009,0.00850263,2919.2,2918.8,1.81988479]
[1644625092410,0.00850263,2919.2,2918.8,1.99098479]
[1644625092610,0.00850263,2919.2,2918.8,2.09673078]
[1644625092810,0.1711,2919.3,2918.8,1.95938304]
[1644625093010,0.1711,2919.3,2918.8,1.62563078]
[1644625093410,0.1711,2919.3,2918.9,0.1711]
[1644625093612,0.1711,2919.3,2919.0,0.493]
[1644625093911,0.1711,2920.1,2919.1,0.85677]
[1644625094111,1.14779764,2919.9,2919.1,1.15243866]
[1644625094313,0.1711,2919.8,2919.1,1.15243866]
[1644625094712,0.1711,2919.8,2919.1,0.493]
[1644625095357,0.16980372,2919.8,2919.1,0.493]
[1644625095557,0.00851042,2919.6,2919.1,0.493]
[1644625096261,0.00851042,2919.6,2919.1,1.34971]
[1644625096461,4.5518,2920.3,2919.1,1.34971]
[1644625096664,0.0085105,2919.5,2919.2,4.74097619]
[1644625096864,0.0085105,2919.5,2919.3,7.8241]
[1644625097063,0.0085105,2919.5,2919.4,4.51166666]
[1644625097261,0.0085105,2919.5,2919.4,6.33218666]
[1644625097463,0.0085105,2919.5,2919.4,14.58734042]
[1644625097661,0.92633182,2920.9,2919.4,14.58734042]
[1644625097662,0.92633182,2920.9,2919.9,0.85646]
[1644625097862,0.92633182,2920.9,2920.0,0.493]
[1644625098262,12.6909,2921.2,2920.0,0.493]
[1644625098461,12.6909,2921.2,2920.1,0.85642]
[1644625098662,12.6909,2921.2,2920.1,1.34942]
[1644625099109,0.00850938,2920.8,2920.1,0.493]
[1644625099312,1.13339058,2920.7,2920.1,0.493]
[1644625099610,0.00850938,2920.8,2919.9,0.85649]
[1644625100009,12.9909,2921.2,2919.9,0.85649]
[1644625100209,0.00850964,2920.5,2919.9,0.85649]
[1644625100610,0.00850964,2920.5,2919.9,1.71289]
[1644625100813,0.00850964,2920.5,2920.1,1.71269]
[1644625101014,0.00850964,2920.5,2920.1,2.20569]
[1644625101211,12.5198,2921.2,2920.2,1.19095294]
[1644625101424,0.00599582,2920.4,2920.3,6.34934]
[1644625101622,0.02397969,2920.9,2920.4,3.55]
[1644625101819,0.02397969,2920.9,2920.5,0.493]
[1644625102018,0.02397969,2920.9,2920.6,0.1711]
[1644625102217,0.02397969,2920.9,2920.7,1.42618229]
[1644625102418,4.5209,2921.7,2920.8,1.0272]
[1644625102676,0.3358,2921.8,2921.0,5.0]
[1644625102874,0.1711,2922.3,2921.5,2.5678005]
[1644625103073,0.1711,2922.3,2921.6,0.493]
[1644625103272,0.1711,2922.3,2921.7,0.1711]
[1644625103474,0.1711,2922.3,2921.9,1.15211052]
[1644625103673,0.1711,2922.3,2922.0,1.34879]
[1644625103873,0.00599374,2922.1,2922.0,0.493]
[1644625104876,0.1711,2922.3,2922.0,1.3489]
[1644625105073,0.1711,2922.3,2922.0,0.35811001]
[1644625105074,0.00599374,2922.2,2922.0,0.35811001]
[1644625105274,0.88242687,2922.4,2922.0,0.35811001]
[1644625105473,0.1711,2922.5,2922.0,0.35811001]
[1644625105474,0.05352687,2922.5,2922.0,0.35811001]
[1644625105674,0.1711,2922.5,2922.0,0.35811001]
[1644625107019,5.0,2922.4,2921.4,1.71201]
[1644625107219,5.0,2922.4,2921.0,0.01485499]
[1644625107220,0.1711,2922.3,2921.0,0.01485499]
[1644625107420,4.68322742,2922.3,2921.0,0.01485499]
[1644625107718,3.85,2922.1,2920.2,0.1711]
[1644625107918,1.08063729,2921.0,2920.3,0.8563379]
[1644625108119,8.4803,2921.7,2920.4,0.1711]
[1644625108320,4.4444,2921.6,2920.6,0.85633]
[1644625108520,4.4444,2921.6,2920.6,0.65895245]
[1644625108720,4.7444,2921.6,2920.6,0.65895245]
[1644625108920,4.4444,2921.6,2920.6,0.65895245]
[1644625109120,1.16943292,2921.4,2920.6,0.46103891]
[1644625109921,1.16943292,2921.4,2920.6,2.17344891]
[1644625110163,4.4444,2921.6,2920.6,1.97546144]
[1644625110363,4.4444,2921.6,2920.7,0.85627]
[1644625110566,4.7444,2921.6,2920.7,0.85627]
[1644625110762,4.4444,2921.6,2920.6,0.26305144]
[1644625111164,0.84389023,2921.4,2920.6,0.26305144]
[1644625111370,4.4444,2921.6,2920.7,0.85627]
[1644625111571,4.4444,2921.6,2920.8,0.85625]
[1644625112569,4.4444,2921.6,2921.0,0.85619]
[1644625112768,4.4444,2921.6,2920.8,0.85625]
[1644625113570,4.4444,2921.6,2920.8,1.7125]
[1644625113825,4.4444,2921.6,2921.0,1.05231319]
[1644625114013,4.4444,2921.6,2920.6,1.29038484]
[1644625114014,4.4444,2921.6,2921.1,0.8562]
[1644625114616,4.4444,2921.6,2921.2,0.85614]
[1644625114816,4.4444,2921.6,2921.1,0.8562]
[1644625115517,4.4444,2921.6,2921.2,0.493]
[1644625115816,3.9535,2922.1,2921.5,0.85602]
[1644625116016,4.2167,2922.2,2921.5,0.85602]
[1644625116217,5.07055534,2922.2,2921.5,0.85602]
[1644625117022,5.07055534,2922.2,2921.4,0.493]
[1644625117023,0.1711,2922.1,2921.4,0.493]
[1644625117327,0.1711,2922.1,2921.4,1.3491]
[1644625118368,5.07055534,2922.2,2921.5,0.85607]
[1644625118566,4.2167,2922.2,2921.6,0.85607]
[1644625119766,4.2167,2922.2,2921.5,1.71204]
[1644625119970,4.2167,2922.2,2921.4,1.34915]
[1644625119971,0.1711,2922.1,2921.4,1.34915]
[1644625120567,1.11326038,2922.0,2921.4,1.34915]
[1644625120768,4.2167,2922.2,2921.4,1.34915]
[1644625121623,0.1711,2922.1,2921.4,1.34915]
[1644625122024,4.2167,2922.2,2921.5,3.72734234]
[1644625122223,4.2167,2922.2,2921.6,1.34888]
[1644625122423,0.00791019,2922.3,2921.7,0.493]
[1644625122626,0.00791019,2922.3,2921.7,0.6641]
[1644625122825,3.9484,2922.6,2921.7,0.6641]
[1644625123025,0.00791056,2922.3,2921.9,1.12905597]
[1644625123227,0.00791056,2922.3,2922.0,0.85594]
[1644625123624,0.00791056,2922.3,2921.8,1.71187]
[1644625124024,0.1711,2922.6,2921.8,1.71187]
[1644625124234,4.5351,2922.7,2921.9,1.34894]
[1644625124235,0.00791065,2922.3,2921.9,1.34894]
[1644625124829,0.00791065,2922.3,2921.9,3.20478]
[1644625125055,0.00791065,2922.3,2921.9,3.18305027]
[1644625125257,4.5351,2922.7,2921.9,3.18311027]
[1644625125456,0.00538552,2922.3,2921.9,3.18311027]
[1644625125658,0.00538552,2922.3,2922.0,6.63819958]
[1644625125857,0.00538552,2922.3,2922.1,2.20464]
[1644625126056,0.00538552,2922.3,2922.1,2.00296528]
[1644625126463,4.5351,2922.7,2922.1,1.14714528]
[1644625126662,0.00791713,2922.3,2922.1,0.493]
[1644625126864,0.00791713,2922.3,2922.1,0.2899052]
[1644625127062,0.00791713,2922.3,2922.1,1.1457952]
[1644625127462,0.00791713,2922.3,2922.2,0.85582]
[1644625127662,4.5351,2922.7,2922.2,0.85582]
[1644625127868,4.5351,2922.7,2922.2,2.36213901]
[1644625127869,0.00791713,2922.3,2922.2,2.36213901]
[1644625128064,0.00791713,2922.3,2922.2,4.07358611]
[1644625128263,0.00791713,2922.3,2922.2,3.86718603]
[1644625128913,4.5351,2922.7,2922.2,3.86718603]
[1644625129111,0.00791703,2922.4,2922.3,1.71144]
[1644625129313,0.00791703,2922.4,2922.3,0.85572]
[1644625129711,0.00791703,2922.4,2922.3,1.71144]
[1644625129911,0.00791703,2922.4,2922.3,2.35866216]
[1644625130112,4.5351,2922.7,2922.3,3.21440216]
[1644625130313,0.00791694,2922.5,2922.3,3.21441586]
[1644625130816,0.00791694,2922.5,2922.3,1.49981706]
[1644625131214,4.5351,2922.7,2922.3,1.49981706]
[1644625131435,0.0079169,2922.5,2922.3,1.28723767]
[1644625131714,0.0079169,2922.5,2922.4,0.85574]
[1644625132315,0.0079169,2922.5,2922.4,0.64296038]
[1644625132574,4.5351,2922.7,2922.4,0.64296038]
[1644625132575,4.5351,2922.7,2922.5,0.85582]
[1644625132774,0.00791684,2922.6,2922.5,1.71161]
[1644625132979,0.00791684,2922.6,2922.5,1.49817733]
[1644625133577,1.02959056,2923.1,2922.5,1.49817733]
[1644625133778,1.02959056,2923.1,2922.5,1.28455676]
[1644625133978,0.00791675,2922.7,2922.5,0.42876676]
[1644625134778,0.29514843,2923.0,2922.5,0.21352897]
[1644625135178,0.00540753,2922.7,2922.5,0.21352897]
[1644625136078,0.29514843,2923.0,2922.5,0.21352897]
[1644625136329,0.29514843,2923.0,2921.9,1.7116389]
[1644625136330,5.4e-07,2922.7,2922.0,1.71179]
[1644625136531,5.4e-07,2922.7,2921.6,0.8561]
[1644625136532,0.02135289,2922.4,2921.6,0.8561]
[1644625136730,0.02135289,2922.4,2921.4,0.85611]
[1644625136930,0.19245289,2922.4,2921.4,0.85611]
[1644625137533,0.29514843,2922.1,2921.6,0.85599]
[1644625137734,0.29514843,2921.7,2921.6,1.71193]
[1644625138336,0.29514843,2921.7,2921.6,0.85599]
[1644625142775,0.65812436,2921.8,2921.7,3.55]
[1644625142971,0.02135289,2922.4,2921.8,3.0]
[1644625143171,0.02135289,2922.4,2922.0,1.71159]
[1644625143374,0.02135289,2922.4,2922.1,0.493]
[1644625143911,0.02135289,2922.4,2922.3,1.07691049]
[1644625144112,0.02135289,2922.4,2922.3,3.28146779]
[1644625145321,0.02135289,2922.4,2922.3,4.88146779]
[1644625145517,5.289e-05,2922.4,2922.3,5.05246779]
[1644625145718,0.1711,2923.2,2922.6,0.8555423]
[1644625145917,0.1711,2923.2,2922.8,0.85555]
[1644625146117,0.1711,2923.2,2922.9,0.493]
[1644625146720,0.1711,2923.2,2922.9,1.34854]
[1644625146922,0.1711,2923.2,2923.1,0.85554]
[1644625147117,0.1711,2923.2,2923.1,1.34854]
[1644625147118,0.17964921,2923.2,2923.1,1.34854]
[1644625147962,0.17964921,2923.2,2923.1,4.94829961]
[1644625148165,4.2526,2924.1,2923.4,0.85535]
[1644625148466,5.8582,2924.9,2923.6,1.1552273]
[1644625148467,0.03419134,2923.7,2923.6,1.1552273]
[1644625148764,0.171,2924.6,2923.8,4.15]
[1644625148765,0.01306333,2924.6,2923.8,4.15]
[1644625148967,0.01306333,2924.6,2923.9,10.47955038]
[1644625149168,5.5362,2925.6,2924.5,0.85495]
[1644625149169,0.88426333,2925.6,2924.5,0.85495]
[1644625149469,0.88426333,2925.6,2924.8,0.8549617]
[1644625149668,0.08549616,2924.7,2924.6,2.0099234]
[1644625150271,7.46,2926.0,2924.7,3.55]
[1644625150472,0.4127,2926.4,2925.0,0.854891]
[1644625150473,4.6366,2926.3,2925.0,0.854891]
[1644625150672,4.6366,2926.3,2925.1,0.493]
[1644625151619,4.4657,2926.3,2925.6,0.85481]
[1644625151818,0.1708,2926.4,2925.3,5.20962]
[1644625152017,0.00854686,2925.8,2925.7,0.493]
[1644625153120,4.1673,2926.7,2925.7,0.493]
[1644625153321,0.00854681,2925.9,2925.7,0.493]
[1644625153723,5.00854681,2925.9,2924.7,0.85501]
[1644625153922,1.1708,2925.8,2924.4,1.71008]
[1644625154124,5.48588421,2925.7,2924.3,0.493]
[1644625154322,1.1708,2925.6,2924.3,0.493]
[1644625154521,0.00854171,2925.4,2924.3,0.493]
[1644625154924,0.00854171,2925.4,2924.5,0.85516]
[1644625155178,0.00854171,2925.4,2924.7,1.7098396]
[1644625155374,4.2478,2925.8,2924.8,3.85412205]
[1644625155572,4.2478,2925.8,2924.8,4.34712205]
[1644625155573,0.00854202,2925.1,2924.8,4.34712205]
[1644625156173,0.00854202,2925.1,2925.0,0.8397874]
[1644625156377,0.00854202,2925.1,2925.0,1.6327874]
[1644625156576,4.2478,2925.8,2925.0,1.9327874]
[1644625156780,0.03416262,2925.6,2925.2,0.8548154]
[1644625157077,0.03416262,2925.6,2925.3,0.493]
[1644625157679,7.6308,2926.5,2925.3,2.20263]
[1644625157879,1.17071315,2926.2,2925.3,2.20263]
[1644625158081,0.00854708,2925.6,2925.3,2.20263]
[1644625158921,7.46,2926.0,2924.7,0.1708]
[1644625159224,0.1708,2925.5,2924.3,3.5]
[1644625159426,0.00854708,2925.6,2924.3,3.5]
[1644625159427,0.00854708,2925.6,2924.3,0.8550876]
[1644625159624,0.00854708,2925.6,2924.2,0.493]
[1644625159625,0.00854708,2925.6,2924.4,0.1708]
[1644625159823,0.00854708,2925.6,2924.6,0.85001726]
[1644625159824,1.07170803,2925.6,2924.6,0.85001726]
[1644625160025,1.07170803,2925.6,2924.6,2.19799726]
[1644625160226,1.06316095,2925.6,2924.6,1.34798]
[1644625160425,0.00854739,2925.2,2924.8,0.85496]
[1644625161126,0.00854739,2925.2,2924.4,1.71017]
[1644625161334,0.1708,2925.5,2924.2,1.7103]
[1644625161335,0.92539258,2924.7,2924.2,1.7103]
[1644625161534,2.0104385,2925.6,2923.7,1.06037864]
[1644625161535,0.1708,2925.1,2923.7,1.06037864]
[1644625161728,0.1708,2924.9,2923.7,0.88957864]
[1644625161928,0.00854748,2925.1,2923.7,0.88957864]
[1644625161929,0.4708,2925.0,2923.7,0.88957864]
[1644625162129,0.1708,2925.0,2923.7,0.88957864]
[1644625162427,1.8815632,2925.0,2923.7,2.60020864]
[1644625162862,0.00854806,2924.5,2923.7,2.60020864]
[1644625163066,0.00854806,2924.5,2923.8,0.1708]
[1644625163670,0.00854806,2924.5,2923.7,2.60020864]
[1644625163868,1.18163205,2924.8,2923.7,3.45556864]
[1644625164068,0.00854823,2924.3,2923.8,0.1708]
[1644625164266,0.00854823,2924.3,2923.8,1.02612]
[1644625164968,0.85532,2925.1,2923.8,1.02612]
[1644625165168,0.85532,2925.1,2923.8,1.88146]
[1644625165169,5.1708,2924.6,2923.8,1.88146]
[1644625165368,0.00854832,2924.2,2923.8,1.88146]
[1644625165567,0.1708,2924.1,2923.8,1.71066]
[1644625165768,0.1708,2924.1,2923.7,2.60020864]
[1644625166068,0.1708,2924.1,2923.8,0.85535]
[1644625166320,3.69998284,2924.6,2923.7,1.71063]
[1644625166524,0.00854846,2924.0,2923.7,1.71063]
[1644625166924,0.00854846,2924.0,2923.7,2.56596]
[1644625167128,0.00854846,2924.0,2923.8,0.471]
[1644625167323,0.171,2925.1,2923.8,0.471]
[1644625167324,3.5,2925.3,2923.8,0.964]
[1644625167723,0.0085485,2924.0,2923.8,0.964]
[1644625167923,0.0085485,2924.0,2923.9,0.88720753]
[1644625168122,0.0085485,2924.0,2923.9,1.85120753]
[1644625168324,0.0085485,2924.0,2923.9,2.70633753]
[1644625168524,3.5,2925.3,2923.9,2.70633753]
[1644625168725,8.7809,2925.4,2924.3,0.855091]
[1644625168926,0.03418802,2924.6,2924.3,0.855091]
[1644625169727,0.88485029,2925.2,2924.4,0.8551]
[1644625169925,0.88485029,2925.2,2924.5,0.8551]
[1644625170163,0.00854797,2924.6,2924.5,0.8551]
[1644625170563,0.00854797,2924.6,2924.2,3.59118]
[1644625170961,0.1708,2925.1,2924.2,3.59118]
[1644625171160,0.00854801,2924.5,2924.2,3.59118]
[1644625171567,0.00854801,2924.5,2924.2,4.4463132]
[1644625171765,0.00854801,2924.5,2924.2,0.1708]
[1644625172367,0.1708,2924.9,2924.2,1.02602]
[1644625172565,0.00854806,2924.5,2924.2,1.02602]
[1644625172965,0.00854806,2924.5,2924.2,0.1708]
[1644625173167,0.00854806,2924.5,2923.6,0.00855081]
[1644625173168,0.1708,2924.4,2923.6,0.00855081]
[1644625173367,0.1708,2924.4,2923.5,0.1709]
[1644625173368,5.01707999,2924.1,2923.5,0.1709]
[1644625173568,4.3826,2924.0,2923.5,0.1709]
[1644625173823,1.00521527,2923.9,2923.6,0.00855081]
[1644625174019,1.0266898,2923.8,2923.6,5.081e-05]
[1644625174220,1.0266898,2923.8,2922.3,1.7112628]
[1644625174221,3.6,2923.6,2922.5,0.171]
[1644625174418,4.35018703,2923.5,2922.5,0.171]
[1644625174621,0.3,2923.5,2921.8,0.171]
[1644625175020,1.15575,2923.5,2921.8,0.171]
[1644625175219,3.6736,2923.4,2922.1,1.24442]
[1644625175420,3.8446,2923.4,2922.2,0.171]
[1644625175622,4.95359734,2923.4,2922.4,1.16901888]
[1644625175821,3.8446,2923.4,2922.5,0.85572]
[1644625176021,3.8446,2923.4,2922.7,0.00259376]
[1644625176222,3.6736,2923.4,2922.7,0.00259376]
[1644625176622,3.9736,2923.4,2922.7,0.00259376]
[1644625176825,4.2736,2923.4,2922.7,0.00259376]
[1644625177024,4.52934,2923.4,2922.5,0.85572]
[1644625177223,4.52934,2923.4,2922.9,0.00259354]
[1644625177423,3.6736,2923.4,2922.9,0.00259354]
[1644625177871,0.171,2923.6,2922.9,0.00259354]
[1644625178070,0.94545783,2923.5,2922.9,0.00259354]
[1644625178271,0.94545783,2923.5,2922.7,0.85564]
[1644625178272,0.171,2923.4,2922.7,0.85564]
[1644625178471,0.171,2923.4,2923.1,0.00854989]
[1644625179369,0.171,2923.4,2922.7,0.85564]
[1644625179571,1.0,2923.6,2922.9,0.85561]
[1644625179770,1.0,2923.6,2923.1,0.00815882]
[1644625179771,0.3,2923.5,2923.1,0.00815882]
[1644625180174,0.8556644,2923.7,2923.1,0.00815882]
[1644625180374,0.3,2923.5,2923.1,0.00815882]
[1644625180571,0.3,2923.5,2922.9,0.85562]
[1644625180572,0.6,2923.5,2922.9,0.85562]
[1644625180772,1.22182008,2923.7,2923.3,0.00815869]
[1644625180972,0.3,2923.7,2923.3,0.00815869]
[1644625181173,5.58455712,2923.8,2923.3,0.00815869]
[1644625181427,1.7113155,2923.7,2923.3,0.00815869]
[1644625181630,0.3,2923.5,2923.3,5.869e-05]
[1644625181928,5.171,2923.4,2921.8,0.171]
[1644625182128,4.15944957,2923.3,2921.7,0.771]
[1644625182326,0.8558867,2923.0,2921.8,0.8558047]
[1644625182529,0.171,2922.9,2922.0,0.85585]
[1644625182732,1.0,2923.2,2922.0,0.85585]
[1644625182733,1.099404,2923.1,2922.0,0.85585]
[1644625183128,1.699404,2923.1,2922.0,0.85585]
[1644625183529,1.699404,2923.1,2922.1,0.8557331]
[1644625183730,1.699404,2923.1,2922.4,0.8557]
[1644625183928,1.699404,2923.1,2922.2,1.7114]
[1644625184530,0.6,2923.1,2922.6,0.00855033]
[1644625184729,1.0085474,2923.6,2922.6,0.00855033]
[1644625184929,0.3,2923.1,2922.6,0.00855033]
[1644625185167,1.3085474,2923.6,2922.6,0.00855033]
[1644625185470,0.3,2923.5,2922.6,0.8557]
[1644625185667,0.85572,2923.4,2922.7,0.00855024]
[1644625185867,1.77249785,2923.4,2922.7,0.00855024]
[1644625186066,0.3,2923.3,2922.7,0.00855024]
[1644625186473,1.51677785,2923.4,2922.7,0.86421024]
[1644625186771,1.0266519,2923.7,2922.7,0.85566]
[1644625186974,1.0266519,2923.7,2922.9,0.00855011]
[1644625186975,0.00854791,2923.6,2922.9,0.00855011]
[1644625187772,1.03858391,2923.5,2922.7,0.85566]
[1644625188173,0.3,2923.5,2923.1,0.00854989]
[1644625188372,0.86421832,2923.6,2923.1,0.00854989]
[1644625188571,1.15568,2923.5,2923.1,0.00854989]
[1644625188823,0.85568,2923.5,2923.1,0.00854989]
[1644625189016,0.85568,2923.5,2922.6,0.85571]
[1644625189216,0.85568,2923.5,2923.2,0.00854984]
[1644625189416,4.45568,2923.5,2922.6,0.81425984]
[1644625189619,1.19002359,2923.4,2922.6,0.81425984]
[1644625189820,2.04574289,2923.4,2922.6,0.81425984]
[1644625190021,0.6,2923.3,2922.4,0.18734308]
[1644625190219,0.6,2923.3,2922.4,0.01634308]
[1644625190220,0.471,2923.3,2922.4,0.01634308]
[1644625190419,0.6,2923.3,2922.4,0.01634308]
[1644625190820,2.19002359,2923.4,2922.4,0.01634308]
[1644625190821,1.19002359,2923.4,2922.4,0.01634308]
[1644625191019,1.49002359,2923.4,2922.5,0.85569]
[1644625191220,1.79002359,2923.4,2922.5,0.85569]
[1644625191420,1.19002359,2923.4,2922.6,0.85569]
[1644625191622,1.79002359,2923.4,2922.6,0.85569]
[1644625191820,1.79002359,2923.4,2922.4,1.72763308]
[1644625192221,0.85576,2923.2,2922.4,1.72763308]
[1644625192420,1.19002359,2923.4,2922.5,0.85576]
[1644625192864,1.19002359,2923.4,2922.7,0.00258764]
[1644625193272,0.171,2923.7,2923.3,0.01623466]
[1644625193468,0.85567,2923.5,2923.3,0.01623466]
[1644625194071,0.0085489,2923.5,2923.3,0.01623466]
[1644625196170,1.57986922,2923.8,2923.3,0.01623466]
[1644625196426,0.0085489,2923.5,2923.3,0.01623466]
[1644625197424,1.30299414,2923.8,2923.3,0.01623466]
[1644625197626,0.0085489,2923.5,2923.3,0.01623466]
[1644625198630,4.3826,2924.0,2923.3,0.01623466]
[1644625198930,4.3826,2924.0,2923.5,0.85544]
[1644625199728,4.3826,2924.0,2923.4,0.03104628]
[1644625200169,0.00854859,2923.9,2923.4,0.03104628]
[1644625200973,5.2380699,2924.0,2923.4,0.03104628]
[1644625201172,0.00854868,2923.8,2923.4,0.03104628]
[1644625202175,6.32846648,2924.0,2923.4,0.03104628]
[1644625202375,0.00854872,2923.7,2923.4,0.03104628]
[1644625203375,5.47299658,2924.0,2923.4,0.03104628]
[1644625203577,4.3826,2924.0,2923.4,0.03104628]
[1644625203824,0.00854877,2923.7,2923.4,0.03104628]
[1644625204217,0.00854877,2923.7,2923.6,0.0148907]
[1644625204617,4.3826,2924.0,2923.6,0.0148907]
[1644625204822,0.00854868,2923.8,2923.6,0.0148907]
[1644625205818,4.3826,2924.0,2923.6,0.0148907]
[1644625206122,0.00854864,2923.8,2923.6,0.0148907]
[1644625207120,4.3826,2924.0,2923.6,0.0148907]
[1644625207420,0.00854864,2923.8,2923.6,0.0148907]
[1644625208264,4.3826,2924.0,2923.6,0.0148907]
[1644625208466,0.00854864,2923.8,2923.6,0.0148907]
[1644625209470,4.3826,2924.0,2923.6,0.03048491]
[1644625209669,0.00854864,2923.8,2923.6,0.03048491]
[1644625209868,0.00854864,2923.8,2923.7,0.85533]
[1644625210270,0.00854864,2923.8,2923.7,1.96836048]
[1644625210472,0.00854864,2923.8,2923.7,3.31671048]
[1644625210671,0.01707999,2924.1,2923.7,2.46136048]
[1644625210872,0.00854859,2923.9,2923.7,2.46136048]
[1644625211325,0.00854859,2923.9,2923.8,0.3]
[1644625211517,0.00854859,2923.9,2923.8,1.81929]
[1644625211716,0.00854859,2923.9,2923.8,2.81929]
[1644625211917,0.01707999,2924.1,2923.8,2.81929]
[1644625211918,0.01707999,2924.1,2923.9,0.85516]
[1644625212118,0.0085485,2924.0,2923.8,5.5759302]
[1644625212317,0.0085485,2924.0,2923.9,0.493]
[1644625212517,0.0085485,2924.0,2923.9,1.34817]
[1644625213117,0.01707999,2924.1,2923.9,1.34817]
[1644625213319,0.02562841,2924.1,2923.9,3.0585401]
[1644625214321,0.01707999,2924.1,2923.9,3.0585401]
[1644625214521,0.02562836,2924.1,2923.9,3.0585401]
[1644625215367,0.01707999,2924.1,2923.9,3.0585401]
[1644625215770,0.02562836,2924.1,2923.9,3.0585401]
[1644625216375,0.02562836,2924.1,2923.9,2.2033501]
[1644625216579,0.01707999,2924.1,2923.9,1.34817]
[1644625216976,0.02562836,2924.1,2923.9,1.34817]
[1644625217375,0.02562836,2924.1,2923.8,0.87071285]
[1644625217776,0.01707999,2924.1,2923.8,0.87071285]
[1644625218176,0.02562841,2924.1,2923.8,0.87071285]
[1644625218378,0.02562841,2924.1,2924.0,0.0450299]
[1644625219022,0.01707999,2924.1,2924.0,0.0450299]
[1644625219324,0.18787999,2924.1,2924.0,0.0295299]
[1644625219723,0.18787999,2924.1,2924.0,0.02657692]
[1644625221929,0.18787999,2924.1,2924.0,0.0214904]
[1644625222570,0.18787999,2924.1,2924.0,9.04e-05]
[1644625222773,10.24646777,2924.1,2924.0,9.04e-05]
[1644625223173,14.83396777,2924.1,2924.0,9.04e-05]
[1644625223374,15.32696777,2924.1,2924.0,9.04e-05]
[1644625223573,4.45583,2923.8,2922.4,0.1708]
[1644625223777,1.98612817,2922.7,2922.0,1.71174]
[1644625223977,1.98612817,2922.7,2922.1,0.171]
[1644625224177,9.19911432,2923.3,2922.1,0.171]
[1644625224377,0.171,2923.2,2921.8,0.001]
[1644625224581,4.7405,2923.2,2921.8,0.001]
[1644625224778,1.0,2923.1,2921.8,0.001]
[1644625224979,1.0268119,2923.0,2922.2,0.85583]
[1644625225179,0.8558119,2923.0,2922.2,0.85583]
[1644625226426,1.0268241,2922.9,2922.2,0.85583]
[1644625226627,3.74094202,2922.8,2922.5,0.00258141]
[1644625226826,1.0,2922.7,2922.5,0.00258141]
[1644625227026,0.171,2922.6,2922.5,0.00258141]
[1644625227229,4.17386741,2922.6,2922.5,0.00258141]
[1644625227425,4.17386741,2922.6,2921.7,0.001]
[1644625227426,5.17386741,2922.6,2921.7,0.001]
[1644625227625,0.87891515,2922.1,2921.7,0.001]
[1644625227827,0.87891515,2922.1,2921.5,0.001]
[1644625228027,3.86514761,2922.0,2921.3,0.171]
[1644625228226,0.1711,2922.0,2921.3,0.171]
[1644625228628,1.02729,2922.0,2921.3,0.171]
[1644625228826,1.4711,2922.0,2921.3,0.171]
[1644625229025,0.4711,2922.0,2921.5,0.0085513]
[1644625229226,0.1711,2922.0,2921.5,0.0085513]
[1644625229829,0.1711,2922.0,2921.3,0.171]
[1644625230070,2.20609515,2922.1,2921.6,0.00855121]
[1644625230273,3.20609515,2922.1,2921.6,0.00855121]
[1644625230475,1.1561177,2922.0,2921.6,0.00855121]
[1644625230673,0.1711,2921.9,2921.6,0.00855121]
[1644625231073,0.1711,2921.9,2921.1,0.001]
[1644625231278,0.4711,2921.9,2921.6,0.00855121]
[1644625232279,0.4711,2921.9,2921.1,0.001]
[1644625232480,1.18698562,2921.4,2921.1,0.001]
[1644625232677,0.4711,2921.9,2921.1,0.001]
[1644625233680,0.4711,2921.9,2921.4,0.00855143]
[1644625233681,0.3,2921.9,2921.4,0.00855143]
[1644625233932,1.02483675,2921.5,2921.4,0.00855143]
[1644625234331,1.19593675,2921.5,2921.4,0.00855143]
[1644625234532,1.49593675,2921.5,2921.4,0.00855143]
[1644625234731,1.79593675,2921.5,2920.6,0.001]
[1644625234933,1.7126537,2921.3,2920.6,0.001]
[1644625235137,0.94784985,2921.0,2920.6,0.001]
[1644625235333,1.7126537,2921.3,2920.6,0.001]
[1644625235735,0.3,2921.2,2920.6,0.001]